fUSD/lending_fUSD_20240101
["ID","MTS","AMOUNT","RATE_DAILY","PERIOD"]
[309774237,1704109881535,-433.52880712,0.00039452,2]
[309774238,1704109881545,-500.0,0.00039452,2]
[309774239,1704109881556,-550.12,0.00039452,2]
[309774240,1704109881567,-500.0,0.00039452,2]
[309774241,1704109881577,-500.0,0.00039452,2]
[309774242,1704109881587,-150.0,0.00039452,2]
[309774243,1704109881597,-764.22,0.00039452,2]
[309774244,1704109881607,-500.0,0.00039452,2]
[309774245,1704109881617,-186.39942987,0.00039452,2]
[309774246,1704109881627,-500.0,0.00039452,2]
[309774247,1704109881637,-777.48,0.00039452,2]
[309774248,1704109881648,-500.0,0.00039452,2]
[309774249,1704109881658,-431.6874032,0.00039452,2]
[309774250,1704109881668,-500.0,0.00039452,2]
[309774251,1704109881679,-500.0,0.00039452,2]
[309774252,1704109881690,-500.0,0.00039452,2]
[309774253,1704109881700,-1110.04,0.00039452,2]
[309774254,1704109881710,-928.23,0.00039452,2]
[309774255,1704109881720,-500.0,0.00039452,2]
[309774256,1704109881731,-500.0,0.00039452,2]
[309774257,1704109881741,-500.0,0.00039452,2]
[309774258,1704109881751,-500.0,0.00039452,2]
[309774259,1704109881761,-2601.12,0.00039452,2]
[309774260,1704109881771,-500.0,0.00039452,2]
[309774261,1704109881781,-612.98929103,0.00039452,2]
[309774262,1704109881791,-533.05,0.00039452,2]
[309774263,1704109881801,-719.76,0.00039452,2]
[309774264,1704109881812,-813.41,0.00039452,2]
[309774265,1704109881823,-500.0,0.00039452,2]
[309774266,1704109881835,-500.0,0.00039452,2]
[309774267,1704109881845,-591.79,0.00039452,2]
[309774268,1704109881856,-743.24,0.00039452,2]
[309774269,1704109881868,-500.0,0.00039452,2]
[309774270,1704109881879,-1336.86,0.00039452,2]
[309774271,1704109881890,-500.0,0.00039452,2]
[309774272,1704109881902,-1003.36,0.00039452,2]
[309774273,1704109881912,-637.26455362,0.00039452,2]
[309774274,1704109881923,-1027.98,0.00039452,2]
[309774275,1704109881933,-500.0,0.00039452,2]
[309774276,1704109881944,-2255.73,0.00039452,2]
[309774277,1704109881954,-365.88474401,0.00039452,2]
[309774278,1704109881965,-1374.7,0.00039452,2]
[309774279,1704109881975,-500.0,0.00039452,2]
[309774280,1704109881985,-504.58,0.00039452,2]
[309774281,1704109881995,-3035.78,0.00039452,5]
[309774282,1704109882005,-500.0,0.00039452,2]
[309774283,1704109882015,-500.0,0.00039452,2]
[309774284,1704109882025,-500.0,0.00039452,2]
[309774285,1704109882035,-500.0,0.00039452,2]
[309774286,1704109882045,-3369.73,0.00039452,2]
[309774287,1704109882055,-3994.99,0.00039452,2]
[309774288,1704109882066,-680.31,0.00039452,2]
[309774289,1704109882076,-500.0,0.00039452,2]
[309774290,1704109882086,-598.43,0.00039452,2]
[309774291,1704109882097,-520.83,0.00039452,2]
[309774292,1704109882109,-785.72,0.00039452,2]
[309774293,1704109882119,-500.0,0.00039452,2]
[309774294,1704109882130,-500.0,0.00039452,2]
[309774295,1704109882141,-500.43,0.00039452,2]
[309774296,1704109882150,-3723.51,0.00039452,5]
[309774297,1704109882160,-603.16,0.00039452,2]
[309774298,1704109882170,-4833.67,0.00039452,2]
[309774299,1704109882180,-606.58,0.00039452,2]
[309774300,1704109882189,-1308.58,0.00039452,2]
[309774301,1704109882199,-669.06,0.00039452,2]
[309774302,1704109882209,-551.88,0.00039452,2]
[309774303,1704109882219,-500.0,0.00039457,4]
[309774304,1704109882228,-500.0,0.00039466,4]
[309774305,1704109882244,-152.96914004,0.00039473,2]
[309774306,1704109882254,-500.0,0.00039474,4]
[309774307,1704109882265,-222.99251106,0.0003948,4]
[309774308,1704109882274,-500.0,0.0003948,4]
[309774309,1704109882284,-500.0,0.00039483,4]
[309774310,1704109882294,-222.22222,0.00039498,8]
[309774311,1704109882304,-250.0,0.000395,30]
[309774312,1704109882315,-2000.0,0.000395,2]
[309774313,1704109882325,-1000.0,0.000395,2]
[309774314,1704109882335,-500.0,0.000395,8]
[309774315,1704109882346,-158.2,0.00039516,2]
[309774316,1704109882355,-150.0,0.00039554,120]
[309774317,1704109882365,-222.22222,0.00039598,8]
[309774318,1704109882375,-9637.47190015,0.000396,2]
[309774319,1704109882385,-4884.35117122,0.000396,2]
[309774320,1704109882395,-10106.97534147,0.000396,2]
[309774321,1704109882405,-153.822114,0.0003961,2]
[309774322,1704109882414,-354.416999,0.0003961,2]
[309774323,1704109882424,-453.74082624,0.00039688,4]
[309774324,1704109882433,-222.22222,0.00039698,8]
[309774325,1704109882443,-8000.0,0.000397,2]
[309774326,1704109882453,-500.0,0.00039726,2]
[309774327,1704109882463,-500.0,0.00039726,2]
[309774328,1704109882473,-500.0,0.00039726,2]
[309774329,1704109882484,-500.0,0.00039726,2]
[309774330,1704109882494,-320.24,0.00039726,2]
[309774331,1704109882505,-500.0,0.00039726,2]
[309774332,1704109882515,-500.0,0.00039726,2]
[309774333,1704109882525,-500.0,0.00039726,2]
[309774334,1704109882534,-500.0,0.00039726,2]
[309774335,1704109882544,-500.0,0.00039726,2]
[309774336,1704109882555,-500.0,0.00039726,2]
[309774337,1704109882566,-500.0,0.00039726,2]
[309774338,1704109882575,-608.22,0.00039726,2]
[309774339,1704109882586,-500.0,0.00039726,2]
[309774340,1704109882596,-500.0,0.00039726,2]
[309774341,1704109882606,-500.0,0.00039726,7]
[309774342,1704109882616,-500.0,0.00039726,2]
[309774343,1704109882627,-720.31,0.00039726,2]
[309774344,1704109882636,-500.0,0.00039726,2]
[309774345,1704109882646,-566.28,0.00039726,2]
[309774346,1704109882656,-500.0,0.00039726,2]
[309774347,1704109882665,-500.0,0.00039726,2]
[309774348,1704109882675,-550.12,0.00039726,2]
[309774349,1704109882685,-500.0,0.00039726,2]
[309774350,1704109882695,-500.0,0.00039726,2]
[309774351,1704109882705,-245.3260395,0.00039726,2]
[309774352,1704109882715,-764.22,0.00039726,2]
[309774353,1704109882725,-348.18085971,0.00039726,2]
[309774354,1704109882734,-500.0,0.00039726,2]
[309774355,1704109882745,-777.48,0.00039726,2]
[309774356,1704109882755,-500.0,0.00039726,2]
[309774357,1704109882765,-500.0,0.00039726,2]
[309774358,1704109882775,-500.0,0.00039726,2]
[309774359,1704109882785,-500.0,0.00039726,2]
[309774360,1704109882795,-1110.04,0.00039726,2]
[309774361,1704109882805,-928.23,0.00039726,2]
[309774362,1704109882815,-160.77915175,0.00039726,2]
[309774363,1704109882824,-500.0,0.00039726,2]
[309774364,1704109882834,-530.30069775,0.00039726,2]
[309774365,1704109882844,-500.0,0.00039726,2]
[309774366,1704109882854,-2601.12,0.00039726,2]
[309774367,1704109882864,-500.0,0.00039726,2]
[309774368,1704109882874,-533.05,0.00039726,2]
[309774369,1704109882884,-719.76,0.00039726,2]
[309774370,1704109882894,-813.41,0.00039726,2]
[309774371,1704109882904,-500.0,0.00039726,2]
[309774372,1704109882918,-500.0,0.00039726,2]
[309774373,1704109882928,-591.79,0.00039726,2]
[309774374,1704109882938,-743.24,0.00039726,2]
[309774375,1704109882948,-500.0,0.00039726,2]
[309774376,1704109882959,-1336.86,0.00039726,2]
[309774377,1704109882968,-500.0,0.00039726,2]
[309774378,1704109882978,-1003.36,0.00039726,2]
[309774379,1704109882989,-1027.98,0.00039726,2]
[309774380,1704109882999,-500.0,0.00039726,2]
[309774381,1704109883009,-2255.73,0.00039726,2]
[309774382,1704109883020,-1374.7,0.00039726,2]
[309774383,1704109883030,-500.0,0.00039726,2]
[309774384,1704109883040,-504.58,0.00039726,2]
[309774385,1704109883050,-3035.78,0.00039726,5]
[309774386,1704109883061,-500.0,0.00039726,2]
[309774387,1704109883072,-500.0,0.00039726,2]
[309774388,1704109883082,-500.0,0.00039726,2]
[309774389,1704109883092,-500.0,0.00039726,2]
[309774390,1704109883103,-3369.73,0.00039726,2]
[309774391,1704109883113,-3994.99,0.00039726,2]
[309774392,1704109883123,-680.31,0.00039726,2]
[309774393,1704109883135,-211.12900684,0.00039726,2]
[309774394,1704109883145,-598.43,0.00039726,2]
[309774395,1704109883155,-520.83,0.00039726,2]
[309774396,1704109883165,-785.72,0.00039726,2]
[309774397,1704109883176,-500.0,0.00039726,2]
[309774398,1704109883186,-551.72779356,0.00039726,2]
[309774399,1704109883196,-500.43,0.00039726,2]
[309774400,1704109883206,-3723.51,0.00039726,5]
[309774401,1704109883216,-603.16,0.00039726,2]
[309774402,1704109883225,-4833.67,0.00039726,2]
[309774403,1704109883235,-1308.58,0.00039726,2]
[309774404,1704109883245,-606.58,0.00039726,2]
[309774405,1704109883256,-669.06,0.00039726,2]
[309774406,1704109883266,-551.88,0.00039726,2]
[309774407,1704109883276,-161.16,0.00039735,2]
[309774408,1704109883286,-22252.85498201,0.0003977,5]
[309774409,1704109883296,-222.22222,0.00039798,8]
[309774410,1704109883306,-277.71620008,0.000398,4]
[309774411,1704109883317,-330.43,0.00039827,2]
[309774412,1704109883326,-500.0,0.00039868,7]
[309774413,1704109883337,-212.0,0.0003987,2]
[309774414,1704109883348,-209.0,0.0003987,2]
[309774415,1704109883358,-2042.0,0.00039879,5]
[309774416,1704109883368,-222.22222,0.00039898,8]
[309774417,1704109883507,-346.54630296,0.000399,4]
[309774418,1704109883537,-1998.82,0.000399,2]
[309774419,1704109883548,-1293.9847346,0.000399,2]
[309774420,1704109883558,-309.62,0.000399,2]
[309774421,1704109883568,-755.98229036,0.000399,2]
[309774422,1704109883578,-755.98229027,0.000399,2]
[309774423,1704109883587,-755.98229027,0.000399,2]
[309774424,1704109883597,-400.0,0.0003997,2]
[309774425,1704109883606,-400.0,0.0003997,2]
[309774426,1704109883616,-300.0,0.00039987,27]
[309774427,1704109883626,-3390.0,0.0003999,2]
[309774428,1704109883636,-222.22222,0.00039998,8]
[309774429,1704109883646,-1810.0178412,0.00039999,2]
[309774430,1704109883655,-4715.70550631,0.00039999,2]
[309774431,1704109883665,-4290.75208066,0.00039999,2]
[309774432,1704109883675,-7464.18280948,0.00039999,2]
[309774433,1704109883684,-232292.44789893,0.0004,15]
[309774434,1704109883694,-1603.18799234,0.0004,4]
[309774435,1704109883703,-1956.00118442,0.0004,4]
[309774436,1704109883713,-2424.36827117,0.0004,2]
[309774437,1704109883723,-759.52552689,0.0004,4]
[309774438,1704109883733,-662.94358048,0.0004,4]
[309774439,1704109883743,-5000.0,0.0004,2]
[309774440,1704109883752,-26855.33582124,0.0004,4]
[309774441,1704109883762,-79422.19133841,0.0004,10]
[309774442,1704109883771,-1396.32173865,0.0004,30]
[309774443,1704109883780,-54076.76032008,0.0004,4]
[309774444,1704109883790,-2263.23560988,0.0004,4]
[309774445,1704109883799,-3338.97612067,0.0004,4]
[309774446,1704109883809,-2057.61826653,0.0004,4]
[309774447,1704109883819,-1080.8753643,0.0004,4]
[309774448,1704109883829,-155.0,0.0004,2]
[309774449,1704109883838,-8996.6432,0.0004,4]
[309774450,1704109883847,-1000.0,0.0004,10]
[309774451,1704109883857,-360.98375212,0.0004,30]
[309774452,1704109883867,-505.43590243,0.0004,5]
[309774453,1704109883877,-7052.22624237,0.0004,2]
[309774454,1704109883888,-151.97635828,0.0004,2]
[309774455,1704109883898,-150.0,0.0004,120]
[309774456,1704109883908,-1352.82368119,0.0004,10]
[309774457,1704109883918,-3000.0,0.0004,10]
[309774458,1704109883928,-3600.0,0.0004,10]
[309774459,1704109883937,-3300.0,0.0004,10]
[309774460,1704109883947,-511.91674765,0.0004,30]
[309774461,1704109883957,-1000.0,0.0004,7]
[309774462,1704109883967,-500.0,0.0004,120]
[309774463,1704109883977,-500.0,0.0004,120]
[309774464,1704109883986,-500.0,0.0004,120]
[309774465,1704109883997,-500.0,0.0004,120]
[309774466,1704109884007,-500.0,0.0004,120]
[309774467,1704109884017,-500.0,0.0004,120]
[309774468,1704109884026,-500.0,0.0004,120]
[309774469,1704109884036,-500.0,0.0004,120]
[309774470,1704109884046,-500.0,0.0004,120]
[309774471,1704109884055,-489.98254018,0.0004,120]
[309774472,1704109884065,-300.0,0.0004,41]
[309774473,1704109884075,-10000.0,0.0004,25]
[309774474,1704109884085,-480.46724173,0.0004,2]
[309774475,1704109884095,-2846.93882397,0.0004,2]
[309774476,1704109884107,-744.65,0.0004,2]
[309774477,1704109884117,-32500.0,0.0004,5]
[309774478,1704109884129,-2277.3030288,0.0004,2]
[309774479,1704109884139,-3313.0,0.0004,88]
[309774480,1704109884150,-51636.26625541,0.0004,2]
[309774481,1704109884190,-784.09260183,0.0004,4]
[309774482,1704109884201,-500.0,0.0004,2]
[309774483,1704109884211,-420.36,0.0004,2]
[309774484,1704109884222,-500.0,0.0004,2]
[309774485,1704109884232,-500.0,0.0004,2]
[309774486,1704109884242,-152.36,0.0004,2]
[309774487,1704109884252,-500.0,0.0004,2]
[309774488,1704109884263,-500.0,0.0004,2]
[309774489,1704109884274,-463.10993175,0.0004,2]
[309774490,1704109884284,-500.0,0.0004,2]
[309774491,1704109884295,-500.0,0.0004,2]
[309774492,1704109884305,-500.0,0.0004,2]
[309774493,1704109884316,-500.0,0.0004,2]
[309774494,1704109884326,-500.0,0.0004,2]
[309774495,1704109884337,-720.31,0.0004,2]
[309774496,1704109884347,-500.0,0.0004,2]
[309774497,1704109884357,-566.28,0.0004,2]
[309774498,1704109884367,-500.0,0.0004,2]
[309774499,1704109884378,-500.0,0.0004,2]
[309774500,1704109884388,-550.12,0.0004,2]
[309774501,1704109884398,-500.0,0.0004,2]
[309774502,1704109884408,-500.0,0.0004,2]
[309774503,1704109884418,-764.22,0.0004,2]
[309774504,1704109884428,-500.0,0.0004,2]
[309774505,1704109884438,-777.48,0.0004,2]
[309774506,1704109884448,-500.0,0.0004,2]
[309774507,1704109884458,-500.0,0.0004,2]
[309774508,1704109884468,-500.0,0.0004,2]
[309774509,1704109884478,-500.0,0.0004,2]
[309774510,1704109884487,-1110.04,0.0004,2]
[309774511,1704109884498,-928.23,0.0004,2]
[309774512,1704109884508,-500.0,0.0004,2]
[309774513,1704109884517,-500.0,0.0004,2]
[309774514,1704109884527,-2601.12,0.0004,2]
[309774515,1704109884537,-500.0,0.0004,2]
[309774516,1704109884547,-533.05,0.0004,2]
[309774517,1704109884558,-719.76,0.0004,2]
[309774518,1704109884570,-500.0,0.0004,8]
[309774519,1704109884581,-813.41,0.0004,2]
[309774520,1704109884592,-500.0,0.0004,2]
[309774521,1704109884602,-500.0,0.0004,2]
[309774522,1704109884613,-591.79,0.0004,2]
[309774523,1704109884624,-743.24,0.0004,2]
[309774524,1704109884635,-500.0,0.0004,2]
[309774525,1704109884644,-500.0,0.0004,2]
[309774526,1704109884654,-1336.86,0.0004,2]
[309774527,1704109884664,-1003.36,0.0004,2]
[309774528,1704109884673,-1027.98,0.0004,2]
[309774529,1704109884683,-500.0,0.0004,2]
[309774530,1704109884693,-2255.73,0.0004,2]
[309774531,1704109884703,-1374.7,0.0004,2]
[309774532,1704109884712,-500.0,0.0004,2]
[309774533,1704109884722,-504.58,0.0004,2]
[309774534,1704109884731,-3035.78,0.0004,5]
[309774535,1704109884741,-500.0,0.0004,2]
[309774536,1704109884751,-4530.32534122,0.0004,2]
[309774537,1704109884760,-500.0,0.0004,2]
[309774538,1704109884769,-500.0,0.0004,2]
[309774539,1704109884779,-500.0,0.0004,2]
[309774540,1704109884789,-3369.73,0.0004,2]
[309774541,1704109884798,-3994.99,0.0004,2]
[309774542,1704109884808,-680.31,0.0004,2]
[309774543,1704109884817,-598.43,0.0004,2]
[309774544,1704109884827,-520.83,0.0004,2]
[309774545,1704109884837,-785.72,0.0004,2]
[309774546,1704109884847,-500.0,0.0004,2]
[309774547,1704109884856,-500.43,0.0004,2]
[309774548,1704109884866,-3723.51,0.0004,5]
[309774549,1704109884875,-603.16,0.0004,2]
[309774550,1704109884884,-4833.67,0.0004,2]
[309774551,1704109884893,-1308.58,0.0004,2]
[309774552,1704109884902,-606.58,0.0004,2]
[309774553,1704109884911,-669.06,0.0004,2]
[309774554,1704109884921,-551.88,0.0004,2]
[309774555,1704109884930,-10860.0,0.0004,5]
[309774556,1704109884940,-1549.68738,0.0004001,2]
[309774557,1704109884950,-222.22222,0.00040098,8]
[309774558,1704109884959,-153.822114,0.00040099,2]
[309774559,1704109884968,-354.416999,0.00040099,2]
[309774560,1704109884977,-287.33,0.00040116,2]
[309774561,1704109884986,-222.22222,0.00040198,8]
[309774562,1704109884996,-1917.388147,0.000402,15]
[309774563,1704109885005,-58000.0,0.00040231,5]
[309774564,1704109885014,-58000.0,0.0004024,5]
[309774565,1704109885024,-201.37390558,0.00040246,45]
[309774566,1704109885034,-58000.0,0.00040249,5]
[309774567,1704109885043,-250.0,0.0004025,30]
[309774568,1704109885053,-58000.0,0.00040257,5]
[309774569,1704109885064,-161.16,0.00040258,2]
[309774570,1704109885074,-196.24,0.00040273,2]
[309774571,1704109885084,-509.8,0.00040273,2]
[309774572,1704109885095,-276.36,0.00040273,2]
[309774573,1704109885105,-500.0,0.00040273,2]
[309774574,1704109885116,-500.0,0.00040273,2]
[309774575,1704109885129,-500.0,0.00040273,2]
[309774576,1704109885144,-500.0,0.00040273,2]
[309774577,1704109885156,-500.0,0.00040273,2]
[309774578,1704109885167,-720.31,0.00040273,2]
[309774579,1704109885178,-500.0,0.00040273,2]
[309774580,1704109885189,-566.28,0.00040273,2]
[309774581,1704109885200,-500.0,0.00040273,2]
[309774582,1704109885211,-500.0,0.00040273,2]
[309774583,1704109885222,-550.12,0.00040273,2]
[309774584,1704109885232,-500.0,0.00040273,2]
[309774585,1704109885242,-500.0,0.00040273,2]
[309774586,1704109885252,-764.22,0.00040273,2]
[309774587,1704109885263,-500.0,0.00040273,2]
[309774588,1704109885273,-777.48,0.00040273,2]
[309774589,1704109885283,-500.0,0.00040273,2]
[309774590,1704109885293,-500.0,0.00040273,2]
[309774591,1704109885303,-500.0,0.00040273,2]
[309774592,1704109885313,-500.0,0.00040273,2]
[309774593,1704109885324,-1110.04,0.00040273,2]
[309774594,1704109885334,-928.23,0.00040273,2]
[309774595,1704109885343,-191.55111027,0.00040273,2]
[309774596,1704109885353,-500.0,0.00040273,2]
[309774597,1704109885364,-2601.12,0.00040273,2]
[309774598,1704109885374,-298.42431932,0.00040273,2]
[309774599,1704109885384,-533.05,0.00040273,2]
[309774600,1704109885394,-719.76,0.00040273,2]
[309774601,1704109885403,-813.41,0.00040273,2]
[309774602,1704109885413,-500.0,0.00040273,2]
[309774603,1704109885423,-500.0,0.00040273,2]
[309774604,1704109885433,-591.79,0.00040273,2]
[309774605,1704109885443,-743.24,0.00040273,2]
[309774606,1704109885452,-287.60060396,0.00040273,2]
[309774607,1704109885463,-504.48231624,0.00040273,2]
[309774608,1704109885472,-1336.86,0.00040273,2]
[309774609,1704109885482,-1003.36,0.00040273,2]
[309774610,1704109885491,-1027.98,0.00040273,2]
[309774611,1704109885501,-500.0,0.00040273,2]
[309774612,1704109885510,-2255.73,0.00040273,2]
[309774613,1704109885521,-1374.7,0.00040273,2]
[309774614,1704109885530,-500.0,0.00040273,2]
[309774615,1704109885540,-504.58,0.00040273,2]
[309774616,1704109885550,-3035.78,0.00040273,5]
[309774617,1704109885559,-500.0,0.00040273,2]
[309774618,1704109885569,-500.0,0.00040273,2]
[309774619,1704109885578,-500.0,0.00040273,2]
[309774620,1704109885588,-500.0,0.00040273,2]
[309774621,1704109885597,-3369.73,0.00040273,2]
[309774622,1704109885606,-3994.99,0.00040273,2]
[309774623,1704109885616,-680.31,0.00040273,2]
[309774624,1704109885625,-598.43,0.00040273,2]
[309774625,1704109885635,-520.83,0.00040273,2]
[309774626,1704109885644,-785.72,0.00040273,2]
[309774627,1704109885654,-500.0,0.00040273,2]
[309774628,1704109885663,-500.43,0.00040273,2]
[309774629,1704109885672,-3723.51,0.00040273,5]
[309774630,1704109885682,-603.16,0.00040273,2]
[309774631,1704109885691,-4833.67,0.00040273,2]
[309774632,1704109885700,-1308.58,0.00040273,2]
[309774633,1704109885709,-606.58,0.00040273,2]
[309774634,1704109885718,-669.06,0.00040273,2]
[309774635,1704109885727,-551.88,0.00040273,2]
[309774636,1704109885737,-369.89605631,0.00040279,7]
[309774637,1704109885745,-245.39649111,0.00040279,7]
[309774638,1704109885755,-338.91962461,0.00040279,7]
[309774639,1704109885764,-8212.21357979,0.00040279,7]
[309774640,1704109885773,-222.22222,0.00040298,8]
[309774641,1704109885783,-279.45,0.00040337,2]
[309774642,1704109885792,-2919.27727573,0.00040396,3]
[309774643,1704109885801,-222.22222,0.00040398,8]
[309774644,1704109885810,-212.0,0.0004042,2]
[309774645,1704109885823,-209.0,0.0004042,2]
[309774646,1704109885833,-152.17,0.00040473,2]
[309774647,1704109885842,-1000.0,0.00040475,2]
[309774648,1704109885852,-222.22222,0.00040498,8]
[309774649,1704109885861,-2000.0,0.000405,2]
[309774650,1704109885870,-1353.823,0.00040507,2]
[309774651,1704109885879,-755.98229027,0.00040527,5]
[309774652,1704109885888,-500.0,0.00040547,2]
[309774653,1704109885898,-500.0,0.00040547,2]
[309774654,1704109885907,-500.0,0.00040547,2]
[309774655,1704109885917,-500.0,0.00040547,2]
[309774656,1704109885927,-237.5,0.00040547,2]
[309774657,1704109885936,-720.31,0.00040547,2]
[309774658,1704109885945,-566.28,0.00040547,2]
[309774659,1704109885955,-500.0,0.00040547,2]
[309774660,1704109885964,-497.81824897,0.00040547,2]
[309774661,1704109885973,-550.12,0.00040547,2]
[309774662,1704109885983,-500.0,0.00040547,2]
[309774663,1704109885992,-238.79780807,0.00040547,2]
[309774664,1704109886002,-764.22,0.00040547,2]
[309774665,1704109886012,-155.48793208,0.00040547,2]
[309774666,1704109886021,-777.48,0.00040547,2]
[309774667,1704109886030,-500.0,0.00040547,2]
[309774668,1704109886039,-500.0,0.00040547,2]
[309774669,1704109886049,-500.0,0.00040547,2]
[309774670,1704109886059,-500.0,0.00040547,2]
[309774671,1704109886068,-1110.04,0.00040547,2]
[309774672,1704109886078,-928.23,0.00040547,2]
[309774673,1704109886087,-500.0,0.00040547,2]
[309774674,1704109886097,-2601.12,0.00040547,2]
[309774675,1704109886107,-533.05,0.00040547,2]
[309774676,1704109886119,-719.76,0.00040547,2]
[309774677,1704109886132,-813.41,0.00040547,2]
[309774678,1704109886143,-500.0,0.00040547,2]
[309774679,1704109886154,-500.0,0.00040547,2]
[309774680,1704109886163,-591.79,0.00040547,2]
[309774681,1704109886173,-743.24,0.00040547,2]
[309774682,1704109886183,-1336.86,0.00040547,2]
[309774683,1704109886194,-1003.36,0.00040547,2]
[309774684,1704109886204,-1027.98,0.00040547,2]
[309774685,1704109886213,-551.37236553,0.00040547,2]
[309774686,1704109886223,-2255.73,0.00040547,2]
[309774687,1704109886233,-1374.7,0.00040547,2]
[309774688,1704109886243,-500.0,0.00040547,2]
[309774689,1704109886252,-504.58,0.00040547,2]
[309774690,1704109886261,-3035.78,0.00040547,5]
[309774691,1704109886271,-500.0,0.00040547,2]
[309774692,1704109886281,-500.0,0.00040547,2]
[309774693,1704109886290,-500.0,0.00040547,2]
[309774694,1704109886299,-500.0,0.00040547,2]
[309774695,1704109886309,-3369.73,0.00040547,2]
[309774696,1704109886318,-3994.99,0.00040547,2]
[309774697,1704109886327,-680.31,0.00040547,2]
[309774698,1704109886337,-598.43,0.00040547,2]
[309774699,1704109886347,-520.83,0.00040547,2]
[309774700,1704109886356,-785.72,0.00040547,2]
[309774701,1704109886366,-269.67779997,0.00040547,2]
[309774702,1704109886376,-500.43,0.00040547,2]
[309774703,1704109886385,-3723.51,0.00040547,5]
[309774704,1704109886395,-603.16,0.00040547,2]
[309774705,1704109886406,-4833.67,0.00040547,2]
[309774706,1704109886415,-1308.58,0.00040547,2]
[309774707,1704109886425,-606.58,0.00040547,2]
[309774708,1704109886435,-669.06,0.00040547,2]
[309774709,1704109886444,-551.88,0.00040547,2]
[309774710,1704109886454,-153.822114,0.00040588,2]
[309774711,1704109886464,-354.416999,0.00040588,2]
[309774712,1704109886473,-222.22222,0.00040598,8]
[309774713,1704109886483,-983.0,0.000406,3]
[309774714,1704109886493,-222.22222,0.00040698,8]
[309774715,1704109886503,-500.0,0.000407,2]
[309774716,1704109886512,-51.54708728,0.00040753,2]
[309774717,1704109886522,-1200.72446618,0.00040753,4]
[309774718,1704109886531,-33683.45447824,0.00040753,4]
[309774719,1704109886541,-155.0,0.00040753,4]
[309774720,1704109886551,-155.0,0.00040753,4]
[309774721,1704109886560,-3322.44077175,0.00040753,4]
[309774722,1704109886570,-2362.63579529,0.00040753,4]
[309774723,1704109886579,-222.22222,0.00040798,8]
[309774724,1704109886588,-222.89,0.00040821,2]
[309774725,1704109886597,-500.0,0.00040821,2]
[309774726,1704109886606,-500.0,0.00040821,2]
[309774727,1704109886616,-500.0,0.00040821,2]
[309774728,1704109886624,-720.31,0.00040821,2]
[309774729,1704109886635,-566.28,0.00040821,2]
[309774730,1704109886644,-550.12,0.00040821,2]
[309774731,1704109886654,-500.0,0.00040821,2]
[309774732,1704109886663,-764.22,0.00040821,2]
[309774733,1704109886673,-777.48,0.00040821,2]
[309774734,1704109886683,-355.36394044,0.00040821,2]
[309774735,1704109886692,-500.0,0.00040821,2]
[309774736,1704109886701,-500.0,0.00040821,2]